bitfinex/quotes_ETHUSD_20250706
["timestamp","ask_amount","ask_price","bid_price","bid_amount"]
[1751811108148,8.092,2563.3,2563.2,4.97095314]
[1751811109167,0.001,2563.3,2563.2,4.97095314]
[1751811109471,8.091,2563.3,2563.2,4.97095314]
[1751811112162,0.001,2563.3,2563.2,5.73585314]
[1751811112356,0.001,2563.3,2563.2,5.77486687]
[1751811112742,8.089,2563.3,2563.2,5.77486687]
[1751811112943,8.089,2563.3,2563.2,5.73585314]
[1751811115975,8.089,2563.3,2563.2,4.97095314]
[1751811117952,8.089,2563.3,2563.2,4.09577328]
[1751811118455,0.798,2563.2,2563.0,3.90356437]
[1751811119888,0.798,2563.2,2563.0,0.002]
[1751811121564,4.69940394,2563.2,2563.0,0.002]
[1751811121999,3.90152549,2563.1,2563.0,0.002]
[1751811122200,4.69952549,2563.1,2563.0,0.002]
[1751811122362,4.69952549,2563.1,2562.5,0.0448771]
[1751811122363,3.90185634,2562.9,2562.5,0.0448771]
[1751811122565,4.70028674,2562.6,2562.5,0.0448771]
[1751811123292,14.79628674,2562.6,2562.5,0.0448771]
[1751811123983,23.75689225,2562.6,2562.5,0.0448771]
[1751811126865,14.79628674,2562.6,2562.5,0.0448771]
[1751811129221,14.79628674,2562.6,2562.0,0.0448771]
[1751811129222,4.66834828,2562.1,2562.0,0.0448771]
[1751811129526,12.75134828,2562.1,2562.0,0.0448771]
[1751811129709,13.1149093,2562.1,2562.0,0.0448771]
[1751811131225,5.0319093,2562.1,2562.0,0.0448771]
[1751811131514,15.1229093,2562.1,2562.0,0.0448771]
[1751811131683,11.21886102,2562.1,2562.0,0.0448771]
[1751811131883,15.1219093,2562.1,2562.0,0.0448771]
[1751811132383,11.2182273,2562.1,2562.0,0.0448771]
[1751811132586,15.12127558,2562.1,2562.0,0.0448771]
[1751811132819,5.03128042,2562.1,2562.0,0.0448771]
[1751811133024,15.12128042,2562.1,2562.0,0.0448771]
[1751811133395,11.21823214,2562.1,2562.0,0.0448771]
[1751811133615,15.12128042,2562.1,2562.0,0.0448771]
[1751811134507,11.21823214,2562.1,2562.0,0.0448771]
[1751811134712,15.12128042,2562.1,2562.0,0.0448771]
[1751811135127,14.75834828,2562.1,2562.0,0.0448771]
[1751811136623,14.75934828,2562.1,2562.0,0.0448771]
[1751811136799,0.7653,2562.1,2562.0,0.0448771]
[1751811137002,10.09,2562.1,2562.0,0.0448771]
[1751811137201,13.99304828,2562.1,2562.0,0.0448771]
[1751811137525,15.14246092,2562.1,2562.0,0.0448771]
[1751811138117,24.77994828,2562.1,2562.0,0.0448771]
[1751811138322,25.14244331,2562.1,2562.0,0.0448771]
[1751811138505,21.4269,2562.1,2562.0,0.0448771]
[1751811138708,25.32994828,2562.1,2562.0,0.0448771]
[1751811139497,25.69250475,2562.1,2562.0,0.0448771]
[1751811139909,25.32994828,2562.1,2562.0,0.0448771]
[1751811140225,25.69251205,2562.1,2562.0,0.0448771]
[1751811142442,21.00256377,2562.1,2561.5,0.0428771]
[1751811142612,15.26501011,2561.6,2561.5,0.0428771]
[1751811142934,23.34601011,2561.6,2561.5,0.0428771]
[1751811143137,15.26501011,2561.6,2561.5,0.0428771]
[1751811143303,25.35401011,2561.6,2561.5,0.0428771]
[1751811143919,10.8112,2561.6,2561.5,0.0428771]
[1751811144134,24.80301011,2561.6,2561.5,0.0428771]
[1751811144335,25.35301011,2561.6,2561.5,0.0428771]
[1751811145207,25.71609636,2561.6,2561.5,0.0428771]
[1751811146122,10.36308625,2561.6,2561.5,0.0428771]
[1751811146306,20.45208625,2561.6,2561.5,0.0428771]
[1751811146506,24.35589636,2561.6,2561.5,0.0428771]
[1751811147127,20.45208625,2561.6,2561.5,0.0428771]
[1751811147842,24.35589636,2561.6,2561.5,0.0428771]
[1751811148421,20.45208625,2561.6,2561.5,0.0428771]
[1751811149031,24.35589636,2561.6,2561.5,0.0428771]
[1751811149535,10.36308625,2561.6,2561.5,0.0428771]
[1751811149741,0.36308625,2561.6,2561.5,0.0428771]
[1751811149914,10.088,2561.6,2561.5,0.0428771]
[1751811150114,10.45108625,2561.6,2561.5,0.0428771]
[1751811150624,24.35489636,2561.6,2561.5,0.0428771]
[1751811151230,24.90489636,2561.6,2561.5,0.0428771]
[1751811151440,25.68519636,2561.6,2561.5,0.0428771]
[1751811151853,15.59719636,2561.6,2561.5,0.0428771]
[1751811152019,15.59719636,2561.6,2561.5,0.0448771]
[1751811152020,25.68419636,2561.6,2561.5,0.0448771]
[1751811153715,25.32111011,2561.6,2561.5,0.0448771]
[1751811153914,25.6861625,2561.6,2561.5,0.0448771]
[1751811154118,25.68619166,2561.6,2561.5,0.0448771]
[1751811156945,5.2149198,2561.2,2561.1,0.02]
[1751811157243,23.12104342,2561.2,2561.1,0.02]
[1751811157744,23.12104342,2561.2,2560.9,0.02]
[1751811157745,15.21522471,2561.0,2560.9,0.02]
[1751811157962,25.66630626,2561.0,2560.9,0.02]
[1751811159065,24.35580626,2561.0,2560.9,0.02]
[1751811159645,26.2916741,2561.0,2560.9,0.02]
[1751811159827,26.29155125,2561.0,2560.9,0.02]
[1751811160643,26.29255125,2561.0,2560.9,0.02]
[1751811162335,16.20555125,2561.0,2560.9,0.02]
[1751811162529,26.28755125,2561.0,2560.9,0.02]
[1751811166649,20.44657999,2561.0,2560.9,0.02]
[1751811167051,10.36457999,2561.0,2560.9,0.02]
[1751811167257,20.44657999,2561.0,2560.9,0.02]
[1751811167669,14.2693047,2561.0,2560.9,0.02]
[1751811167867,20.44557999,2561.0,2560.9,0.02]
[1751811168067,24.3503047,2561.0,2560.9,0.02]
[1751811168270,20.44557999,2561.0,2560.9,0.02]
[1751811168468,24.3503047,2561.0,2560.9,0.02]
[1751811169476,25.6940047,2561.0,2560.9,0.02]
[1751811171569,25.6930047,2561.0,2560.9,0.02]
[1751811171773,25.69336808,2561.0,2560.9,0.02]
[1751811174462,17.61736808,2561.0,2560.9,0.02]
[1751811174670,24.89966808,2561.0,2560.9,0.02]
[1751811175345,14.26966808,2561.0,2560.9,0.02]
[1751811175548,24.34866808,2561.0,2560.9,0.02]
[1751811176973,24.89966808,2561.0,2560.9,0.02]
[1751811178772,20.99494337,2561.0,2560.9,0.02]
[1751811178975,24.89966808,2561.0,2560.9,0.02]
[1751811179683,24.89866808,2561.0,2560.9,0.02]
[1751811179987,12.36994337,2561.0,2560.9,0.02]
[1751811180191,2.36994337,2561.0,2560.9,5.12656852]
[1751811180376,0.36594337,2561.0,2560.9,5.12656852]
[1751811180778,8.43994337,2561.0,2560.9,5.12656852]
[1751811181154,0.36594337,2561.0,2560.9,4.71927719]
[1751811181358,8.43894337,2561.0,2560.9,4.71927719]
[1751811181589,8.43894337,2561.0,2560.9,0.8144]
[1751811182707,8.074,2561.0,2560.9,0.8144]
[1751811182897,8.43954325,2561.0,2560.9,0.8144]
[1751811183267,8.43959305,2561.0,2560.9,0.8144]
[1751811185668,8.08232205,2561.0,2560.9,0.8144]
[1751811186399,8.08232205,2561.0,2560.9,1.69165334]
[1751811186570,8.08232205,2561.0,2560.9,0.89725334]
[1751811186778,8.08232205,2561.0,2560.9,0.02]
[1751811192917,11.98704676,2561.0,2560.9,0.02]
[1751811193416,8.08232205,2561.0,2560.9,0.02]
[1751811193913,18.08232205,2561.0,2560.9,0.02]
[1751811194087,21.98704676,2561.0,2560.9,0.02]
[1751811194787,21.98706551,2561.0,2560.9,0.02]
[1751811195189,18.0823408,2561.0,2560.9,0.02]
[1751811195389,21.98706551,2561.0,2560.9,0.02]
[1751811195876,23.52435392,2561.0,2560.9,0.02]
[1751811196198,23.29336551,2561.0,2560.9,0.02]
[1751811197752,22.92775371,2561.0,2560.9,0.02]
[1751811198008,23.29341337,2561.0,2560.9,0.02]
[1751811198606,23.29337169,2561.0,2560.9,0.02]
[1751811199216,15.21132967,2560.8,2560.7,0.14796377]
[1751811199416,23.64394765,2560.8,2560.7,0.14796377]
[1751811200207,23.76160367,2560.7,2560.6,0.02]
[1751811200385,33.51022165,2560.7,2560.6,0.02]
[1751811200717,15.2117872,2560.5,2560.4,0.0650697]
[1751811200920,15.2117872,2560.5,2560.3,0.02]
[1751811200921,14.45563974,2560.4,2560.3,0.02]
[1751811201123,15.57747199,2560.4,2560.3,0.02]
[1751811201597,14.66224484,2560.2,2559.0,0.02]
[1751811201806,15.21255,2560.0,2559.0,0.8247]
[1751811201989,5.21300781,2559.7,2559.0,0.8247]
[1751811202190,4.45701308,2559.5,2559.0,0.02]
[1751811202390,32.27354533,2559.5,2559.0,0.02]
[1751811202787,24.20654533,2559.5,2559.0,0.02]
[1751811203015,34.27354533,2559.5,2559.0,0.02]
[1751811204934,24.20654533,2559.5,2559.0,0.02]
[1751811205133,35.06714533,2559.5,2559.0,0.02]
[1751811205320,15.25122377,2559.1,2559.0,0.02]
[1751811205519,32.23487752,2559.1,2559.0,0.02]
[1751811205880,20.43253225,2559.1,2559.0,0.02]
[1751811206146,24.34015602,2559.1,2559.0,0.02]
[1751811206458,24.89015602,2559.1,2559.0,0.02]
[1751811206952,34.23387752,2559.1,2559.0,0.02]
[1751811207150,34.23387752,2559.1,2558.7,0.0533298]
[1751811207451,15.25938191,2558.8,2558.7,0.0533298]
[1751811207653,23.69191416,2558.8,2558.7,0.0533298]
[1751811207849,15.62491416,2558.8,2558.7,0.0533298]
[1751811208079,14.27361416,2558.8,2558.7,0.0533298]
[1751811208349,24.34261416,2558.8,2558.7,0.0533298]
[1751811209066,20.43453225,2558.8,2558.7,0.0533298]
[1751811209246,20.43353225,2558.8,2558.7,0.0533298]
[1751811209445,10.36553225,2558.8,2558.7,0.0533298]
[1751811209769,20.068,2558.8,2558.7,0.0533298]
[1751811210555,10.0,2558.8,2558.7,0.0533298]
[1751811210735,20.068,2558.8,2558.7,0.0533298]
[1751811211343,20.069,2558.8,2558.7,0.0533298]
[1751811212265,12.001,2558.8,2558.7,0.0533298]
[1751811212664,10.068,2558.8,2558.7,4.76036445]
[1751811212842,10.068,2558.8,2558.7,5.64003406]
[1751811213535,10.0,2559.3,2558.9,3.90781591]
[1751811213737,10.0,2559.1,2558.7,1.73179941]
[1751811213984,13.90808191,2558.8,2558.7,0.0533298]
[1751811214178,21.97508191,2558.8,2558.7,0.0533298]
[1751811214638,18.067,2558.8,2558.7,0.0533298]
[1751811215566,0.8013,2559.4,2558.7,0.0533298]
[1751811215770,0.8013,2559.4,2558.8,0.7988]
[1751811215771,4.45748691,2559.2,2558.8,0.7988]
[1751811215965,18.067,2559.1,2558.8,0.7988]
[1751811216368,8.067,2559.1,2558.8,0.7988]
[1751811216555,11.97469689,2559.1,2558.8,0.7988]
[1751811216878,10.0,2559.0,2558.8,0.7988]
[1751811217176,8.066,2558.9,2558.8,0.7988]
[1751811218171,8.066,2558.9,2558.7,0.0533298]
[1751811218172,18.066,2558.9,2558.7,0.0533298]
[1751811218373,10.0,2558.8,2558.7,0.0533298]
[1751811218576,8.066,2558.9,2558.7,0.8521298]
[1751811218871,10.0,2558.8,2558.7,0.8521298]
[1751811219469,10.067,2558.8,2558.7,0.8521298]
[1751811220485,20.067,2558.8,2558.7,4.76036445]
[1751811220657,20.067,2558.8,2558.7,0.8521298]
[1751811222690,20.067,2558.8,2558.7,4.76036445]
[1751811222691,20.062,2558.8,2558.7,4.76036445]
[1751811222990,20.062,2558.8,2558.7,0.8521298]
[1751811223583,20.42546824,2558.8,2558.7,0.8521298]
[1751811224866,20.42575142,2558.8,2558.7,0.8521298]
[1751811225067,20.42575142,2558.8,2558.7,4.76036445]
[1751811225471,10.36375142,2558.8,2558.7,4.76036445]
[1751811225657,20.42475142,2558.8,2558.7,4.76036445]
[1751811226902,0.36375142,2558.8,2558.7,5.64023353]
[1751811227081,0.001,2559.0,2558.9,3.90792918]
[1751811227272,0.001,2559.0,2558.9,4.77170847]
[1751811227273,8.065,2559.0,2558.9,4.77170847]
[1751811227469,8.065,2559.0,2558.9,4.73262918]
[1751811228464,0.001,2559.0,2558.9,4.73262918]
[1751811228767,8.065,2559.0,2558.9,6.11992043]
[1751811228986,8.065,2559.0,2558.9,6.08084114]
[1751811230263,0.001,2559.0,2558.9,6.08084114]
[1751811230476,0.001,2559.0,2558.9,4.73262918]
[1751811231260,0.36618514,2559.0,2558.9,4.73262918]
[1751811232693,0.001,2559.0,2558.9,4.73262918]
[1751811233087,0.36623137,2559.0,2558.9,4.73262918]
[1751811233392,8.062,2559.0,2558.9,4.73262918]
[1751811233565,8.42717119,2559.0,2558.9,4.73262918]
[1751811233765,8.42717119,2559.0,2558.9,3.90792918]
[1751811234183,8.42717119,2559.0,2558.8,3.90802092]
[1751811234380,0.36517119,2558.9,2558.8,3.90802092]
[1751811235261,0.36517119,2558.9,2558.7,4.74281799]
[1751811235457,0.36517119,2558.8,2558.7,3.96151799]
[1751811236569,18.062,2559.0,2558.9,3.90792918]
[1751811236769,18.42719072,2559.0,2558.9,3.90792918]
[1751811237801,18.42719072,2559.0,2558.8,3.90800703]
[1751811237990,0.36519072,2558.9,2558.8,3.90800703]
[1751811242002,0.36519072,2558.9,2558.8,4.773293]
[1751811242915,0.36519072,2558.9,2558.8,5.554593]
[1751811243508,0.001,2559.0,2558.9,3.90792918]
[1751811243721,0.36644442,2559.0,2558.9,3.90792918]
[1751811244086,0.36644442,2559.0,2558.8,0.7813]
[1751811244285,0.36544442,2558.9,2558.8,4.689308]
[1751811244714,0.36544442,2558.9,2558.8,3.908008]
[1751811245129,0.36544442,2558.9,2558.7,0.0533298]
[1751811245422,8.42344442,2558.8,2558.7,3.96156445]
[1751811245996,8.42344442,2558.8,2558.7,0.0533298]
[1751811246589,18.42344442,2558.8,2558.7,0.0533298]
[1751811247417,23.71152633,2558.8,2558.7,0.0533298]
[1751811247614,23.7117443,2558.8,2558.7,0.0533298]
[1751811247828,24.25727008,2558.8,2558.7,0.0533298]
[1751811248114,23.7117443,2558.8,2558.7,0.0533298]
[1751811249422,23.7117443,2558.8,2558.5,0.12796377]
[1751811249423,15.26498739,2558.6,2558.5,0.12796377]
[1751811249611,23.68764978,2558.6,2558.5,0.12796377]
[1751811250621,15.63020898,2558.6,2558.5,0.12796377]
[1751811251027,11.72182159,2558.6,2558.5,0.12796377]
[1751811251198,21.22682159,2558.6,2558.5,0.12796377]
[1751811251400,11.17182159,2558.6,2558.5,0.12796377]
[1751811251594,21.77682159,2558.6,2558.5,0.12796377]
[1751811251904,0.36522159,2558.6,2558.5,0.12796377]
[1751811252118,10.054,2558.6,2558.5,4.03650393]
[1751811252300,10.41922159,2558.6,2558.5,4.03650393]
[1751811253098,11.22972159,2558.6,2558.5,1.00462966]
[1751811253299,11.22972159,2558.6,2558.5,0.12796377]
[1751811253505,10.41922159,2558.6,2558.5,0.12796377]
[1751811254243,24.32760898,2558.6,2558.5,0.12796377]
[1751811254717,24.87760898,2558.6,2558.5,0.12796377]
[1751811255122,10.36522159,2558.6,2558.5,0.12796377]
[1751811255311,20.41522159,2558.6,2558.5,0.12796377]
[1751811256647,10.36479748,2558.6,2558.5,0.12796377]
[1751811256821,18.42279748,2558.6,2558.5,0.12796377]
[1751811260239,19.23329748,2558.6,2558.5,0.12796377]
[1751811260540,23.69168487,2558.6,2558.5,0.12796377]
[1751811260945,24.29168487,2558.6,2558.5,0.12796377]
[1751811261144,24.29168487,2558.6,2558.3,0.02]
[1751811261145,4.45869293,2558.4,2558.3,0.02]
[1751811261324,23.69099041,2558.4,2558.3,0.02]
[1751811262315,23.32619293,2558.4,2558.3,0.02]
[1751811262518,23.69138874,2558.4,2558.3,0.02]
[1751811263520,15.63438874,2558.4,2558.3,0.02]
[1751811263818,25.68438874,2558.4,2558.3,0.02]
[1751811266326,25.68638874,2558.4,2558.3,0.02]
[1751811266521,3.16969581,2558.4,2558.3,0.02]
[1751811266758,10.41619581,2558.4,2558.3,0.02]
[1751811267253,20.96619581,2558.4,2558.3,0.02]
[1751811267453,0.36519581,2558.4,2558.3,0.02]
[1751811267664,2.594,2558.6,2558.4,3.90869293]
[1751811267972,0.36494534,2558.5,2558.3,0.02]
[1751811268168,0.36494534,2558.5,2558.3,3.96072079]
[1751811268328,1.995,2558.6,2558.4,3.90869293]
[1751811268528,8.42197521,2558.5,2558.4,3.90869293]
[1751811269058,0.36497521,2558.5,2558.4,3.90869293]
[1751811269267,8.42197521,2558.5,2558.4,0.0318944]
[1751811269431,8.42197521,2558.5,2558.4,3.94058733]
[1751811269627,0.36497521,2558.5,2558.4,4.81028036]
[1751811269837,0.001,2558.6,2558.5,3.90854016]
[1751811270040,8.058,2558.6,2558.5,3.90854016]
[1751811270246,8.42299744,2558.6,2558.4,3.94051279]
[1751811270447,1.17829744,2558.5,2558.4,0.0318944]
[1751811270660,11.72829744,2558.5,2558.4,0.0318944]
[1751811270968,10.36499744,2558.5,2558.4,0.0318944]
[1751811271455,10.36499744,2558.5,2558.4,3.94058733]
[1751811271963,0.36499744,2558.5,2558.4,3.94058733]
[1751811273333,0.36499744,2558.5,2558.4,0.0318944]
[1751811273530,0.36499744,2558.5,2558.4,3.94058733]
[1751811274162,0.36499744,2558.5,2558.4,0.0318944]
[1751811274666,0.36499744,2558.5,2558.4,3.94058733]
[1751811274973,0.36499744,2558.5,2558.4,0.0318944]
[1751811277077,8.42099744,2558.5,2558.4,3.94058733]
[1751811277378,8.42162262,2558.5,2558.4,0.0318944]
[1751811277538,8.42162262,2558.5,2558.4,3.94058733]
[1751811277738,8.42162262,2558.5,2558.4,0.0318944]
[1751811278380,0.36562262,2558.5,2558.4,3.94058733]
[1751811278547,0.001,2558.6,2558.5,3.90854016]
[1751811278751,0.001,2558.6,2558.5,4.73604016]
[1751811281697,8.056,2559.0,2558.9,4.73542918]
[1751811281868,0.001,2559.0,2558.9,4.73542918]
[1751811282063,0.001,2559.0,2558.9,5.5997784]
[1751811282793,0.001,2559.0,2558.9,5.63885769]
[1751811282995,0.001,2559.0,2558.9,5.5997784]
[1751811283412,1e-08,2559.0,2558.9,5.5997784]
[1751811283694,1e-08,2559.0,2558.9,1.69184922]
[1751811283908,8.05400001,2559.0,2558.9,3.90792918]
[1751811284992,8.05800001,2559.0,2558.8,3.90801993]
[1751811285291,8.05800001,2559.0,2558.5,0.8048]
[1751811285714,8.05800001,2559.0,2558.8,3.90806953]
[1751811285865,0.55,2558.9,2558.4,0.0318944]
[1751811286066,3.90850264,2558.6,2558.4,0.0318944]
[1751811286297,8.06,2558.5,2558.4,0.0318944]
[1751811287517,23.28614016,2558.5,2558.4,0.0318944]
[1751811287679,23.88614016,2558.5,2558.4,0.0318944]
[1751811287881,24.61762857,2558.5,2558.4,0.0318944]
[1751811288512,0.6,2558.5,2558.4,0.0318944]
[1751811288802,8.081,2558.5,2558.4,0.0318944]
[1751811289788,21.98954016,2558.5,2558.4,0.0318944]
[1751811290070,22.53954016,2558.5,2558.4,0.0318944]
[1751811290270,22.53954016,2558.5,2558.4,0.0338944]
[1751811290770,22.90442136,2558.5,2558.4,0.0338944]
[1751811292677,23.50442136,2558.5,2558.4,0.0338944]
[1751811295003,24.94542136,2558.5,2558.4,0.0338944]
[1751811295207,25.49551504,2558.5,2558.4,0.0338944]
[1751811295706,10.96497396,2558.5,2558.4,0.0338944]
[1751811295907,10.36497396,2558.5,2558.4,0.0338944]
[1751811296116,24.34351412,2558.5,2558.4,0.0338944]
[1751811296319,24.89351412,2558.5,2558.4,0.0338944]
[1751811297780,25.49351412,2558.5,2558.4,0.0338944]
[1751811298509,21.58497396,2558.5,2558.4,0.0338944]
[1751811298690,21.58197396,2558.5,2558.4,0.0338944]
[1751811299284,11.51497396,2558.5,2558.4,0.0338944]
[1751811299511,20.98197396,2558.5,2558.4,0.0338944]
[1751811299921,24.89051412,2558.5,2558.4,0.0338944]
[1751811300581,25.66671412,2558.5,2558.4,0.0338944]
[1751811300985,25.66673046,2558.5,2558.4,0.0338944]
[1751811301425,11.6911903,2558.5,2558.4,0.0338944]
[1751811301585,0.3649903,2558.5,2558.4,0.0338944]
[1751811301789,8.4439903,2558.5,2558.4,4.33885383]
[1751811302003,0.3649903,2558.5,2558.4,4.33885383]
[1751811302209,0.36487537,2558.9,2558.8,3.90808191]
[1751811302520,1e-08,2559.0,2558.9,4.71372918]
[1751811302521,0.36487486,2559.0,2558.9,4.71372918]
[1751811302720,1e-08,2559.0,2558.9,4.71372918]
[1751811302941,1e-08,2559.0,2558.9,5.57590914]
[1751811311410,10.5613698,2559.9,2559.8,3.90655519]
[1751811311411,0.0113698,2559.9,2559.8,3.90655519]
[1751811311616,0.0113698,2559.9,2559.7,3.90668854]
[1751811311849,0.37545005,2559.9,2559.6,3.90679555]
[1751811312142,8.0973698,2559.9,2559.8,3.90655519]
[1751811312311,8.0973698,2559.9,2559.7,3.90664325]
[1751811312509,0.0113698,2559.9,2559.7,3.90664325]
[1751811312736,8.085,2559.8,2559.7,3.90664325]
[1751811314352,8.085,2559.8,2559.6,3.90675833]
[1751811314554,10.0,2559.7,2559.1,0.8093]
[1751811314946,10.0,2559.7,2559.4,3.9071011]
[1751811315261,10.7733,2559.7,2559.3,3.90731481]
[1751811315558,0.72765143,2559.6,2559.3,3.90731481]
[1751811315757,10.7733,2559.7,2559.1,0.8093]
[1751811315935,10.0,2559.7,2559.1,0.8093]
[1751811316138,10.0,2559.7,2559.4,3.90710631]
[1751811316853,10.0,2559.5,2558.9,0.002]
[1751811317174,3.3283,2559.6,2558.9,0.002]
[1751811317175,14.45777647,2559.0,2558.9,0.002]
[1751811317339,25.31807647,2559.0,2558.9,0.002]
[1751811317540,11.13715769,2559.0,2558.9,0.002]
[1751811317867,18.082,2559.0,2558.9,0.002]
[1751811319458,18.082,2559.0,2558.9,3.90992918]
[1751811319664,0.7733,2559.3,2558.9,3.90992918]
[1751811319823,8.082,2559.2,2559.1,3.90753942]
[1751811320159,18.081,2559.2,2559.1,3.90753942]
[1751811320329,2.005,2559.3,2559.2,3.90747108]
[1751811320524,8.081,2559.4,2559.3,3.9073184]
[1751811321241,8.081,2559.4,2559.3,4.7166184]
[1751811321777,10.0,2559.7,2559.6,3.90686044]
[1751811321931,18.08,2559.7,2559.5,3.90694732]
[1751811322445,18.08,2559.7,2559.6,3.90686044]
[1751811322768,18.08,2559.7,2559.5,3.90699568]
[1751811322928,18.08,2559.7,2559.3,4.71656346]
[1751811323126,18.08,2559.7,2559.4,3.90702746]
[1751811323326,8.084,2559.6,2559.3,5.18825674]
[1751811323663,18.084,2559.6,2559.5,3.90701308]
[1751811323830,18.084,2559.6,2559.3,0.8093]
[1751811324032,18.084,2559.6,2559.1,0.7939]
[1751811324363,18.084,2559.6,2559.2,3.9073688]
[1751811324751,18.084,2559.6,2559.3,3.90724278]
[1751811324957,18.084,2559.6,2559.2,3.90747108]
[1751811325160,18.084,2559.6,2559.2,4.37760819]
[1751811325359,18.084,2559.6,2559.4,3.90702121]
[1751811325360,10.0,2559.6,2559.4,3.90702121]
[1751811325661,10.0,2559.6,2558.9,0.002]
[1751811325662,10.0,2559.1,2558.9,0.002]
[1751811325869,3.90747896,2559.2,2558.9,0.002]
[1751811325870,10.088,2559.0,2558.9,0.002]
[1751811326531,24.75017647,2559.0,2558.9,0.002]
[1751811326737,25.66472234,2559.0,2558.9,0.002]
[1751811328073,25.66772234,2559.0,2558.9,0.002]
[1751811328738,25.6680216,2559.0,2558.9,0.002]
[1751811329879,22.3586216,2559.0,2558.9,0.002]
[1751811330079,23.6802216,2559.0,2558.9,0.002]
[1751811331150,23.6802216,2559.0,2558.4,0.0338944]
[1751811331151,15.23014016,2558.5,2558.4,0.0338944]
[1751811331482,25.68698529,2558.5,2558.4,0.0338944]
[1751811333189,14.45869293,2558.4,2557.9,0.0432642]
[1751811333350,15.23860414,2558.0,2557.9,0.0432642]
[1751811333678,23.69144927,2558.0,2557.9,0.0432642]
[1751811334650,15.60344927,2558.0,2557.9,0.0432642]
[1751811335246,25.69844927,2558.0,2557.9,0.0432642]
[1751811336164,25.69944927,2558.0,2557.9,0.0432642]
[1751811336369,11.69414513,2558.0,2557.9,0.0432642]
[1751811336571,20.46084513,2558.0,2557.9,0.0432642]
[1751811336755,20.096,2558.0,2557.9,0.0432642]
[1751811337165,12.005,2558.0,2557.9,0.0432642]
[1751811337382,20.097,2558.0,2557.9,0.0432642]
[1751811337585,20.104,2558.0,2557.9,0.0432642]
[1751811338486,2.006,2558.1,2557.9,0.0432642]
[1751811338784,8.097,2558.0,2557.9,0.0432642]
[1751811339692,0.55,2558.3,2557.9,3.95272117]
[1751811339894,10.0,2558.1,2558.0,3.90921231]
[1751811340091,10.0,2558.1,2557.9,0.0432642]
[1751811340287,20.102,2558.0,2557.9,3.95269927]
[1751811340590,20.102,2558.0,2557.9,4.66532268]
[1751811340990,10.0,2558.0,2557.9,4.66532268]
[1751811341164,18.095,2558.0,2557.9,3.95269927]
[1751811342081,10.0,2558.0,2557.9,3.95269927]
[1751811342275,18.093,2558.0,2557.9,3.95269927]
[1751811344195,18.093,2558.0,2557.9,0.0432642]
[1751811344393,18.093,2558.0,2557.9,3.95272117]
[1751811344760,10.0,2558.0,2557.9,3.95272117]
[1751811344974,20.096,2558.0,2557.9,3.95272117]
[1751811345366,18.086,2558.0,2557.9,3.95272117]
[1751811345567,10.0,2558.0,2557.9,3.95272117]
[1751811345768,18.086,2558.0,2557.9,3.95272117]
[1751811347101,10.0,2558.0,2557.9,3.95272117]
[1751811347403,18.086,2558.0,2557.9,3.95272117]
[1751811348603,18.086,2558.0,2557.9,0.0432642]
[1751811349396,10.0,2558.0,2557.9,0.0432642]
[1751811349585,18.078,2558.0,2557.9,0.0432642]
[1751811350402,18.078,2558.0,2557.9,3.95272117]
[1751811351074,18.078,2558.0,2557.9,0.0432642]
[1751811351399,18.078,2558.0,2557.9,3.95272117]
[1751811351967,2.007,2558.6,2558.5,3.90842657]
[1751811352182,10.44314452,2558.6,2558.5,3.90842657]
[1751811352403,2.37138778,2558.6,2558.5,3.90842657]
[1751811352579,10.08,2558.6,2558.5,3.90842657]
[1751811352896,10.0,2558.5,2558.4,3.90861093]
[1751811353102,20.68,2558.6,2558.3,3.90877487]
[1751811353103,10.68,2558.6,2558.3,3.90877487]
[1751811353498,10.0,2558.5,2558.4,3.90869293]
[1751811354085,10.0,2558.5,2558.3,3.90877151]
[1751811354273,10.0,2558.5,2558.4,3.90869293]
[1751811354479,18.071,2558.5,2558.3,3.90876342]
[1751811355105,18.071,2558.5,2558.2,3.90891417]
[1751811355476,18.071,2558.5,2558.1,3.90909809]
[1751811355678,18.071,2558.5,2558.3,3.90884419]
[1751811356488,0.36536979,2558.4,2558.2,3.90891598]
[1751811356691,8.065,2558.3,2558.2,3.90891598]
[1751811357208,2.007,2558.4,2558.3,3.90876568]
[1751811357376,20.43736884,2558.4,2558.3,3.90876568]
[1751811357582,2.007,2558.5,2558.4,3.90869293]
[1751811357782,20.43538523,2558.5,2558.4,3.90869293]
[1751811358521,20.43537234,2558.5,2558.0,0.7779]
[1751811358721,20.07,2558.5,2558.0,0.7779]
[1751811358881,20.07,2558.5,2558.2,3.90891353]
[1751811359276,20.07,2558.5,2558.1,3.90907194]
[1751811359505,0.36540097,2558.4,2558.2,3.90898929]
[1751811359708,8.061,2558.3,2558.2,3.90898929]
[1751811360096,8.061,2558.3,2558.1,3.90906784]
[1751811360299,8.061,2558.3,2558.0,0.7779]
[1751811360508,8.061,2558.3,2558.1,3.90905293]
[1751811360978,8.061,2558.3,2558.0,4.68713173]
[1751811361404,8.061,2558.3,2558.1,3.90913377]
[1751811361610,8.061,2558.3,2558.2,3.90899851]
[1751811361811,8.4264578,2558.3,2558.1,3.90909907]
[1751811362013,8.061,2558.3,2558.1,3.90909907]
[1751811362391,8.061,2558.3,2557.9,0.0452642]
[1751811362392,11.96991689,2558.3,2557.9,0.0452642]
[1751811362596,10.0,2558.2,2557.9,0.0452642]
[1751811362894,8.42648902,2558.1,2557.9,0.0452642]
[1751811363095,8.061,2558.1,2557.9,0.0452642]
[1751811363295,10.0,2558.0,2557.9,0.0452642]
[1751811363904,10.36557451,2558.0,2557.3,0.0432642]
[1751811364104,8.061,2558.1,2557.3,0.0432642]
[1751811364105,14.73852131,2557.4,2557.3,0.0432642]
[1751811364415,11.19404058,2557.4,2557.3,0.0432642]
[1751811364603,25.22026189,2557.4,2557.3,0.0432642]
[1751811365005,10.3658024,2557.4,2557.3,0.0432642]
[1751811365336,24.39202371,2557.4,2557.3,0.0432642]
[1751811365485,12.3728024,2557.4,2557.3,0.0432642]
[1751811365832,20.4808024,2557.4,2557.3,0.0432642]
[1751811365985,0.3658024,2557.4,2557.3,3.95363842]
[1751811366311,0.3658024,2557.4,2557.3,4.43095226]
[1751811366490,2.007,2558.1,2558.0,3.90930414]